[Event "Un Rapid per cominciare!"]
[Site "Chess.com"]
[Date "2020.04.10"]
[Round "4"]
[White "lionblu1"]
[Black "ottovolante"]
[Result "1-0"]
[WhiteElo "1299"]
[BlackElo "988"]
[TimeControl "720+3"]
[EndTime "12:57:21 PDT"]
[Termination "lionblu1 ha vinto per scaccomatto"]

1. d4 {[%clk 0:12:02.9]} 1... e6 {[%clk 0:11:57.3]} 2. c4 {[%clk 0:12:03.8]}
2... Nf6 {[%clk 0:11:54.1]} 3. Nc3 {[%clk 0:12:01.4]} 3... Bb4 {[%clk
0:11:54.4]} 4. Bg5 {[%clk 0:12:02]} 4... Bxc3+ {[%clk 0:11:55.4]} 5. bxc3 {[%clk
0:12:03.1]} 5... h6 {[%clk 0:11:53.2]} 6. Bh4 {[%clk 0:12:00.4]} 6... Nc6 {[%clk
0:11:30.6]} 7. Nf3 {[%clk 0:11:53.6]} 7... Ne7 {[%clk 0:11:32.2]} 8. e3 {[%clk
0:11:42.8]} 8... Ng6 {[%clk 0:11:33.6]} 9. Bg3 {[%clk 0:11:36.4]} 9... d6 {[%clk
0:11:17.3]} 10. Be2 {[%clk 0:11:12.4]} 10... Ne4 {[%clk 0:11:18.6]} 11. Qc2
{[%clk 0:10:55.2]} 11... Nxg3 {[%clk 0:11:16.6]} 12. hxg3 {[%clk 0:10:55.6]}
12... Bd7 {[%clk 0:10:48.8]} 13. e4 {[%clk 0:10:42.2]} 13... Bc6 {[%clk
0:09:45.5]} 14. d5 {[%clk 0:10:26.3]} 14... Bd7 {[%clk 0:09:42.4]} 15. Bd3
{[%clk 0:09:47.3]} 15... e5 {[%clk 0:09:42.7]} 16. Nd2 {[%clk 0:08:30.2]} 16...
Kf8 {[%clk 0:09:39.5]} 17. O-O {[%clk 0:08:18.3]} 17... Qe8 {[%clk 0:09:40.1]}
18. f4 {[%clk 0:08:11]} 18... Ba4 {[%clk 0:09:32.5]} 19. Qb1 {[%clk 0:07:53.3]}
19... b6 {[%clk 0:09:07.8]} 20. fxe5 {[%clk 0:06:53.4]} 20... Nxe5 {[%clk
0:09:07.7]} 21. Nf3 {[%clk 0:06:13.5]} 21... Nxd3 {[%clk 0:08:48.7]} 22. Qxd3
{[%clk 0:06:12.9]} 22... Bd7 {[%clk 0:08:49.6]} 23. Rae1 {[%clk 0:05:42.7]}
23... a6 {[%clk 0:08:49.6]} 24. e5 {[%clk 0:05:19]} 24... g6 {[%clk 0:08:43.8]}
25. e6 {[%clk 0:05:03.3]} 25... fxe6 {[%clk 0:08:34.2]} 26. Ng5+ {[%clk
0:04:42.4]} 26... Kg7 {[%clk 0:08:35.3]} 27. Nxe6+ {[%clk 0:04:31.3]} 27... Bxe6
{[%clk 0:08:35]} 28. Rxe6 {[%clk 0:04:26.1]} 28... Qd7 {[%clk 0:08:29]} 29.
Qxg6# {[%clk 0:04:20.9]} 1-0

[Event "Un Rapid per cominciare!"]
[Site "Chess.com"]
[Date "2020.04.10"]
[Round "4"]
[White "markk000"]
[Black "francesco_visen"]
[Result "1-0"]
[WhiteElo "1570"]
[BlackElo "1557"]
[TimeControl "720+3"]
[EndTime "13:00:26 PDT"]
[Termination "markk000 ha vinto per scaccomatto"]

1. d4 {[%clk 0:12:02.9]} 1... d5 {[%clk 0:12:01.1]} 2. c4 {[%clk 0:12:01.3]}
2... e6 {[%clk 0:12:01.6]} 3. Nc3 {[%clk 0:12:01.6]} 3... Nf6 {[%clk 0:12:00.3]}
4. Bg5 {[%clk 0:12:00.4]} 4... c6 {[%clk 0:11:57.5]} 5. Nf3 {[%clk 0:12:00.4]}
5... Nbd7 {[%clk 0:11:56.6]} 6. e3 {[%clk 0:11:45.6]} 6... Qa5 {[%clk
0:11:38.9]} 7. Bd3 {[%clk 0:11:27.5]} 7... Bb4 {[%clk 0:11:28.4]} 8. Qc2 {[%clk
0:11:25.7]} 8... Bxc3+ {[%clk 0:11:08.5]} 9. bxc3 {[%clk 0:11:26]} 9... O-O
{[%clk 0:11:08]} 10. O-O {[%clk 0:11:26.8]} 10... dxc4 {[%clk 0:10:44.5]} 11.
Bxc4 {[%clk 0:11:24.7]} 11... b5 {[%clk 0:10:38.4]} 12. Bd3 {[%clk 0:11:14.1]}
12... Rb8 {[%clk 0:09:44.5]} 13. Ne5 {[%clk 0:11:10.6]} 13... h6 {[%clk
0:09:41.2]} 14. Nxd7 {[%clk 0:11:09.2]} 14... Nxd7 {[%clk 0:09:29.4]} 15. Be7
{[%clk 0:11:08]} 15... Re8 {[%clk 0:09:19.3]} 16. Bb4 {[%clk 0:11:08.9]} 16...
Qc7 {[%clk 0:08:58.1]} 17. Bc5 {[%clk 0:10:54.2]} 17... a5 {[%clk 0:08:10.1]}
18. Ba3 {[%clk 0:10:17.3]} 18... Nf6 {[%clk 0:08:03.7]} 19. e4 {[%clk
0:10:10.8]} 19... b4 {[%clk 0:07:56.5]} 20. Bb2 {[%clk 0:10:08]} 20... e5 {[%clk
0:07:38.8]} 21. cxb4 {[%clk 0:10:04.5]} 21... exd4 {[%clk 0:07:33.8]} 22. bxa5
{[%clk 0:09:59.9]} 22... Qxa5 {[%clk 0:07:26.3]} 23. Bxd4 {[%clk 0:09:54.3]}
23... Bd7 {[%clk 0:06:00.5]} 24. Bxf6 {[%clk 0:09:52.5]} 24... gxf6 {[%clk
0:05:44.6]} 25. Rfe1 {[%clk 0:09:46.2]} 25... Re5 {[%clk 0:05:27]} 26. Re3
{[%clk 0:09:06.1]} 26... Rc5 {[%clk 0:05:23.1]} 27. Qe2 {[%clk 0:08:35.1]} 27...
Qc3 {[%clk 0:04:51.9]} 28. Rg3+ {[%clk 0:08:30.2]} 28... Kf8 {[%clk 0:04:26.2]}
29. Rd1 {[%clk 0:08:28]} 29... Rb2 {[%clk 0:04:11.6]} 30. Qf3 {[%clk 0:08:15.4]}
30... Rxa2 {[%clk 0:03:09.4]} 31. Qf4 {[%clk 0:07:51.9]} 31... Ra1 {[%clk
0:02:34.8]} 32. Qd6+ {[%clk 0:07:31.3]} 32... Ke8 {[%clk 0:02:23]} 33. Rg8#
{[%clk 0:07:32.6]} 1-0

[Event "Un Rapid per cominciare!"]
[Site "Chess.com"]
[Date "2020.04.10"]
[Round "4"]
[White "Delsoldato03"]
[Black "Luca090267"]
[Result "0-1"]
[WhiteElo "1062"]
[BlackElo "1351"]
[TimeControl "720+3"]
[EndTime "13:04:28 PDT"]
[Termination "Luca090267 ha vinto per abbandono"]

1. e4 {[%clk 0:12:02.9]} 1... e5 {[%clk 0:12:01.1]} 2. Nf3 {[%clk 0:12:04.7]}
2... Nc6 {[%clk 0:12:02.5]} 3. Bb5 {[%clk 0:12:05]} 3... a6 {[%clk 0:12:03.2]}
4. Ba4 {[%clk 0:12:06.9]} 4... Nf6 {[%clk 0:12:03.8]} 5. O-O {[%clk 0:12:02.3]}
5... d6 {[%clk 0:12:01.7]} 6. Re1 {[%clk 0:12:03.4]} 6... Be7 {[%clk 0:12:02.9]}
7. c3 {[%clk 0:12:01.8]} 7... O-O {[%clk 0:11:58.8]} 8. h3 {[%clk 0:11:54.7]}
8... b5 {[%clk 0:11:58.2]} 9. Bc2 {[%clk 0:11:55.1]} 9... Na5 {[%clk 0:11:59.1]}
10. d4 {[%clk 0:11:37.6]} 10... exd4 {[%clk 0:11:48.9]} 11. cxd4 {[%clk
0:11:38.8]} 11... c5 {[%clk 0:11:42.2]} 12. Nc3 {[%clk 0:09:45.7]} 12... Bb7
{[%clk 0:11:24.6]} 13. Bg5 {[%clk 0:09:26.8]} 13... Nd7 {[%clk 0:10:50.1]} 14.
Bxe7 {[%clk 0:09:21.5]} 14... Qxe7 {[%clk 0:10:50.2]} 15. Qd2 {[%clk 0:08:59.3]}
15... Nc4 {[%clk 0:10:20.8]} 16. Qc1 {[%clk 0:08:44.1]} 16... Rae8 {[%clk
0:09:39.4]} 17. b3 {[%clk 0:08:40.2]} 17... Ncb6 {[%clk 0:09:37.6]} 18. Nd5
{[%clk 0:08:13.5]} 18... Nxd5 {[%clk 0:09:33.2]} 19. exd5 {[%clk 0:08:13.9]}
19... Qd8 {[%clk 0:09:33.8]} 20. dxc5 {[%clk 0:08:05.4]} 20... dxc5 {[%clk
0:09:16.8]} 21. Qd2 {[%clk 0:07:36.2]} 21... Rxe1+ {[%clk 0:09:06.8]} 22. Rxe1
{[%clk 0:07:36.8]} 22... Re8 {[%clk 0:09:08.2]} 23. Rxe8+ {[%clk 0:07:25.4]}
23... Qxe8 {[%clk 0:09:09.2]} 24. Qd3 {[%clk 0:07:08.8]} 24... g6 {[%clk
0:09:03.9]} 25. d6 {[%clk 0:07:01.2]} 25... Qe6 {[%clk 0:07:37]} 26. Qd2 {[%clk
0:06:41.2]} 26... Bxf3 {[%clk 0:07:18]} 27. gxf3 {[%clk 0:06:34.7]} 27... Qxh3
{[%clk 0:07:19.6]} 28. Qg5 {[%clk 0:06:12.9]} 28... Qe6 {[%clk 0:06:43.3]} 29.
Qd8+ {[%clk 0:06:08.2]} 29... Kg7 {[%clk 0:06:45]} 30. Qe7 {[%clk 0:05:50.9]}
30... Nb6 {[%clk 0:03:51.6]} 31. Be4 {[%clk 0:05:37]} 31... Nd7 {[%clk
0:03:46.7]} 32. Bc6 {[%clk 0:05:36.6]} 32... Ne5 {[%clk 0:03:42.8]} 33. Qxe6
{[%clk 0:05:27.9]} 33... fxe6 {[%clk 0:03:42.8]} 34. Be8 {[%clk 0:05:20.6]}
34... Nxf3+ {[%clk 0:03:27.2]} 35. Kg2 {[%clk 0:05:19.2]} 35... Ne5 {[%clk
0:03:28.9]} 36. f4 {[%clk 0:05:20.1]} 36... Nf7 {[%clk 0:03:21.9]} 37. Kf3
{[%clk 0:05:04.2]} 37... Nd8 {[%clk 0:03:23.2]} 38. Ke4 {[%clk 0:05:05.1]} 38...
Kf8 {[%clk 0:03:24.7]} 39. d7 {[%clk 0:05:04.8]} 39... Ke7 {[%clk 0:03:25.9]}
40. Ke5 {[%clk 0:05:02.3]} 40... Nc6+ {[%clk 0:03:25.7]} 41. Ke4 {[%clk
0:05:00.9]} 41... Nb8 {[%clk 0:03:13.3]} 42. Ke5 {[%clk 0:04:34.5]} 42... Nxd7+
{[%clk 0:03:13.7]} 43. Bxd7 {[%clk 0:04:35.6]} 43... Kxd7 {[%clk 0:03:14.7]} 44.
Kf6 {[%clk 0:04:38]} 44... h5 {[%clk 0:03:03.1]} 45. Kg5 {[%clk 0:04:38.7]}
45... Kd6 {[%clk 0:03:00.2]} 46. Kh4 {[%clk 0:04:39.4]} 46... c4 {[%clk
0:02:55.2]} 47. bxc4 {[%clk 0:04:39.9]} 47... bxc4 {[%clk 0:02:56.3]} 0-1

[Event "Un Rapid per cominciare!"]
[Site "Chess.com"]
[Date "2020.04.10"]
[Round "4"]
[White "Lorenzo_PR"]
[Black "GuGe14"]
[Result "0-1"]
[WhiteElo "1169"]
[BlackElo "1593"]
[TimeControl "720+3"]
[EndTime "13:11:26 PDT"]
[Termination "GuGe14 ha vinto per abbandono"]

1. e4 {[%clk 0:12:02.9]} 1... c6 {[%clk 0:12:00]} 2. Nf3 {[%clk 0:12:03.7]} 2...
d5 {[%clk 0:12:00]} 3. Nc3 {[%clk 0:12:05.6]} 3... dxe4 {[%clk 0:12:01]} 4. Nxe4
{[%clk 0:12:06.9]} 4... Nf6 {[%clk 0:12:00.7]} 5. Nxf6+ {[%clk 0:12:06.3]} 5...
exf6 {[%clk 0:12:03.6]} 6. Be2 {[%clk 0:12:00.5]} 6... Bd6 {[%clk 0:11:22.7]} 7.
d4 {[%clk 0:11:56.3]} 7... O-O {[%clk 0:11:05.4]} 8. O-O {[%clk 0:11:57.4]} 8...
Na6 {[%clk 0:10:01]} 9. Bxa6 {[%clk 0:11:47.3]} 9... bxa6 {[%clk 0:09:54.1]} 10.
c3 {[%clk 0:11:49.7]} 10... Bg4 {[%clk 0:09:34.9]} 11. h3 {[%clk 0:11:49.9]}
11... Bh5 {[%clk 0:09:34.3]} 12. Qd3 {[%clk 0:11:35.2]} 12... Re8 {[%clk
0:08:54.4]} 13. Bd2 {[%clk 0:11:35.1]} 13... Bg6 {[%clk 0:08:54.4]} 14. Qxa6
{[%clk 0:11:33.1]} 14... Rb8 {[%clk 0:08:32.3]} 15. b3 {[%clk 0:10:56.8]} 15...
Qd7 {[%clk 0:08:16.5]} 16. Rfe1 {[%clk 0:10:51.5]} 16... Be4 {[%clk 0:06:58.6]}
17. Re3 {[%clk 0:10:40.1]} 17... Bf4 {[%clk 0:06:39.4]} 18. Re2 {[%clk 0:08:59]}
18... Bc7 {[%clk 0:04:13.8]} 19. Nh2 {[%clk 0:07:34.7]} 19... Qd6 {[%clk
0:03:33.1]} 20. g3 {[%clk 0:07:27.5]} 20... Qd7 {[%clk 0:03:01]} 21. Rae1 {[%clk
0:06:44]} 21... f5 {[%clk 0:02:35.9]} 22. Qa3 {[%clk 0:04:49.1]} 22... Re6
{[%clk 0:01:49.9]} 23. Qc1 {[%clk 0:04:44.4]} 23... Rbe8 {[%clk 0:00:59.6]} 24.
Bf4 {[%clk 0:04:37.2]} 24... Bb6 {[%clk 0:00:56.5]} 25. Qd2 {[%clk 0:04:18.2]}
25... h6 {[%clk 0:00:57.6]} 26. h4 {[%clk 0:04:17]} 26... Qd5 {[%clk 0:00:37.6]}
27. Nf1 {[%clk 0:03:01.9]} 27... f6 {[%clk 0:00:23.8]} 28. Ne3 {[%clk
0:02:53.1]} 28... Qd7 {[%clk 0:00:14.6]} 29. Nc4 {[%clk 0:02:25.9]} 29... g5
{[%clk 0:00:16.4]} 30. Nxb6 {[%clk 0:02:17]} 30... axb6 {[%clk 0:00:19.3]} 31.
hxg5 {[%clk 0:02:16.1]} 31... fxg5 {[%clk 0:00:20.8]} 32. Bxg5 {[%clk
0:01:00.4]} 32... hxg5 {[%clk 0:00:22.1]} 33. Qxg5+ {[%clk 0:01:03]} 33... Qg7
{[%clk 0:00:22.9]} 34. Qxg7+ {[%clk 0:01:02.1]} 34... Kxg7 {[%clk 0:00:25]} 35.
f3 {[%clk 0:01:04.3]} 35... Bd5 {[%clk 0:00:25.4]} 36. Rxe6 {[%clk 0:01:05.4]}
36... Rxe6 {[%clk 0:00:27.6]} 37. Rxe6 {[%clk 0:01:07.1]} 37... Bxe6 {[%clk
0:00:30.3]} 38. Kf2 {[%clk 0:01:08.6]} 38... Kf6 {[%clk 0:00:25.1]} 39. Ke3
{[%clk 0:01:02.4]} 39... Bd5 {[%clk 0:00:24.7]} 40. c4 {[%clk 0:01:02.3]} 40...
Bf7 {[%clk 0:00:25.3]} 41. a3 {[%clk 0:01:02.8]} 41... b5 {[%clk 0:00:22]} 42.
c5 {[%clk 0:01:02.4]} 42... Bxb3 {[%clk 0:00:22.9]} 43. Kf4 {[%clk 0:01:02.5]}
43... Bc2 {[%clk 0:00:19.9]} 44. g4 {[%clk 0:01:03.2]} 44... fxg4 {[%clk
0:00:17.4]} 45. fxg4 {[%clk 0:01:04.5]} 45... Ke6 {[%clk 0:00:20]} 46. g5 {[%clk
0:01:06.3]} 46... Kd5 {[%clk 0:00:22.3]} 47. Ke3 {[%clk 0:01:05.1]} 47... Kc4
{[%clk 0:00:23.3]} 48. Kd2 {[%clk 0:00:47.4]} 48... Bg6 {[%clk 0:00:24.3]} 49.
Ke3 {[%clk 0:00:47.6]} 49... Bh7 {[%clk 0:00:23.5]} 50. Kf4 {[%clk 0:00:42.8]}
50... Kxd4 {[%clk 0:00:24.9]} 51. Kg4 {[%clk 0:00:44.2]} 51... Kxc5 {[%clk
0:00:24.2]} 52. Kh5 {[%clk 0:00:46.5]} 52... Bc2 {[%clk 0:00:24.1]} 53. Kh6
{[%clk 0:00:48.5]} 53... Kc4 {[%clk 0:00:25.3]} 54. g6 {[%clk 0:00:51]} 54...
Bxg6 {[%clk 0:00:26.7]} 0-1

[Event "Un Rapid per cominciare!"]
[Site "Chess.com"]
[Date "2020.04.10"]
[Round "5"]
[White "Niklas1205"]
[Black "sergiodone"]
[Result "0-1"]
[WhiteElo "804"]
[BlackElo "1215"]
[TimeControl "720+3"]
[EndTime "13:15:37 PDT"]
[Termination "sergiodone ha vinto per abbandono"]

1. c3 {[%clk 0:12:02.9]} 1... c5 {[%clk 0:11:57.6]} 2. e3 {[%clk 0:12:03.7]}
2... d6 {[%clk 0:11:58.7]} 3. d4 {[%clk 0:12:03.9]} 3... b6 {[%clk 0:11:59.9]}
4. f4 {[%clk 0:12:02.7]} 4... e6 {[%clk 0:12:01.4]} 5. b4 {[%clk 0:12:03.1]}
5... Qc7 {[%clk 0:11:58.1]} 6. a3 {[%clk 0:12:03.8]} 6... Be7 {[%clk 0:11:58.5]}
7. g3 {[%clk 0:12:03.3]} 7... Bb7 {[%clk 0:11:59.8]} 8. e4 {[%clk 0:11:58.6]}
8... Nf6 {[%clk 0:11:58.8]} 9. h4 {[%clk 0:11:56.6]} 9... Nxe4 {[%clk
0:11:56.9]} 10. Rh3 {[%clk 0:11:54.6]} 10... Nd7 {[%clk 0:11:51]} 11. Bd3 {[%clk
0:11:50.2]} 11... Ndf6 {[%clk 0:11:51.5]} 12. Bb5+ {[%clk 0:11:45.6]} 12... Bc6
{[%clk 0:11:47.3]} 13. Bf1 {[%clk 0:11:43.1]} 13... d5 {[%clk 0:11:45.1]} 14.
dxc5 {[%clk 0:11:42.1]} 14... bxc5 {[%clk 0:11:46.2]} 15. bxc5 {[%clk
0:11:41.6]} 15... Bxc5 {[%clk 0:11:46.9]} 16. Nf3 {[%clk 0:11:39.9]} 16... Bf2+
{[%clk 0:11:43.4]} 17. Ke2 {[%clk 0:11:37.3]} 17... Bxg3 {[%clk 0:11:44.6]} 18.
f5 {[%clk 0:11:31.2]} 18... Bb5+ {[%clk 0:11:43.6]} 19. Ke3 {[%clk 0:11:21.6]}
19... Qc5+ {[%clk 0:11:39.7]} 20. Nd4 {[%clk 0:11:06.1]} 20... e5 {[%clk
0:11:24.1]} 0-1

[Event "Un Rapid per cominciare!"]
[Site "Chess.com"]
[Date "2020.04.10"]
[Round "5"]
[White "lucatarozzi"]
[Black "MarcoCiva"]
[Result "1-0"]
[WhiteElo "1279"]
[BlackElo "1728"]
[TimeControl "720+3"]
[EndTime "13:19:50 PDT"]
[Termination "lucatarozzi ha vinto per abbandono"]

1. d4 {[%clk 0:12:02.9]} 1... Nf6 {[%clk 0:11:59.8]} 2. Nf3 {[%clk 0:12:04.6]}
2... e6 {[%clk 0:12:00.7]} 3. Bf4 {[%clk 0:12:06.4]} 3... d5 {[%clk 0:11:54.9]}
4. e3 {[%clk 0:12:08.4]} 4... Bd6 {[%clk 0:11:41.2]} 5. Bg3 {[%clk 0:12:08.8]}
5... Bxg3 {[%clk 0:11:42.3]} 6. fxg3 {[%clk 0:12:10.5]} 6... O-O {[%clk
0:11:31.5]} 7. Bd3 {[%clk 0:12:11.6]} 7... Nc6 {[%clk 0:11:23.6]} 8. O-O {[%clk
0:12:12]} 8... Re8 {[%clk 0:11:20.4]} 9. Nbd2 {[%clk 0:12:10.7]} 9... e5 {[%clk
0:11:18.7]} 10. Bb5 {[%clk 0:11:57.6]} 10... Bd7 {[%clk 0:11:06.1]} 11. Bxc6
{[%clk 0:11:57.5]} 11... Bxc6 {[%clk 0:10:55.3]} 12. Nxe5 {[%clk 0:11:58.4]}
12... Bb5 {[%clk 0:10:44.1]} 13. Rf2 {[%clk 0:11:52.4]} 13... Qd6 {[%clk
0:10:38.8]} 14. Ndf3 {[%clk 0:11:48.3]} 14... c5 {[%clk 0:10:16.5]} 15. c3
{[%clk 0:11:48.3]} 15... cxd4 {[%clk 0:10:12.5]} 16. cxd4 {[%clk 0:11:49.2]}
16... Ne4 {[%clk 0:10:05.9]} 17. Rc2 {[%clk 0:11:37.3]} 17... f6 {[%clk
0:09:46.6]} 18. Nd3 {[%clk 0:11:27.1]} 18... Bxd3 {[%clk 0:09:32.6]} 19. Qxd3
{[%clk 0:11:27.8]} 19... Rac8 {[%clk 0:09:07.1]} 20. Rac1 {[%clk 0:11:25.8]}
20... Rc6 {[%clk 0:08:56.1]} 21. a3 {[%clk 0:11:14.8]} 21... Rec8 {[%clk
0:08:51.8]} 22. Rxc6 {[%clk 0:11:14.5]} 22... Rxc6 {[%clk 0:08:53.2]} 23. Rxc6
{[%clk 0:11:10.9]} 23... bxc6 {[%clk 0:08:53.8]} 24. b4 {[%clk 0:10:59.2]} 24...
g5 {[%clk 0:08:36.9]} 25. Qa6 {[%clk 0:10:59.2]} 25... Qe7 {[%clk 0:08:20.2]}
26. Qxc6 {[%clk 0:10:52.1]} 26... Nc3 {[%clk 0:08:08.1]} 27. Qxc3 {[%clk
0:10:51.3]} 1-0

[Event "Un Rapid per cominciare!"]
[Site "Chess.com"]
[Date "2020.04.10"]
[Round "5"]
[White "Jody94"]
[Black "lionblu1"]
[Result "0-1"]
[WhiteElo "977"]
[BlackElo "1330"]
[TimeControl "720+3"]
[EndTime "13:20:54 PDT"]
[Termination "lionblu1 ha vinto per scaccomatto"]

1. e4 {[%clk 0:12:02.9]} 1... c5 {[%clk 0:12:00.2]} 2. Nc3 {[%clk 0:12:02.5]}
2... a6 {[%clk 0:11:59.4]} 3. g3 {[%clk 0:12:02]} 3... e6 {[%clk 0:12:00.1]} 4.
Bg2 {[%clk 0:12:03.9]} 4... Nc6 {[%clk 0:11:53.7]} 5. Nge2 {[%clk 0:11:49.4]}
5... b5 {[%clk 0:11:48.8]} 6. O-O {[%clk 0:11:50.8]} 6... Bb7 {[%clk 0:11:46]}
7. e5 {[%clk 0:11:28.9]} 7... Nge7 {[%clk 0:11:43.2]} 8. Ne4 {[%clk 0:11:03.6]}
8... Nf5 {[%clk 0:11:10.2]} 9. c3 {[%clk 0:10:48.1]} 9... d5 {[%clk 0:11:04.5]}
10. g4 {[%clk 0:09:48.1]} 10... Nh4 {[%clk 0:10:45.8]} 11. Nf4 {[%clk
0:08:10.6]} 11... Nxg2 {[%clk 0:10:22.6]} 12. Nxg2 {[%clk 0:08:08.9]} 12... dxe4
{[%clk 0:10:21.4]} 13. Qe1 {[%clk 0:08:09.6]} 13... Nxe5 {[%clk 0:10:05]} 14.
Qe2 {[%clk 0:07:25.3]} 14... Nf3+ {[%clk 0:09:52.7]} 15. Kh1 {[%clk 0:07:19.1]}
15... Qc7 {[%clk 0:09:38]} 16. d3 {[%clk 0:07:07.5]} 16... Qxh2# {[%clk
0:09:37.5]} 0-1

[Event "Un Rapid per cominciare!"]
[Site "Chess.com"]
[Date "2020.04.10"]
[Round "5"]
[White "ottovolante"]
[Black "Delsoldato03"]
[Result "0-1"]
[WhiteElo "981"]
[BlackElo "1133"]
[TimeControl "720+3"]
[EndTime "13:22:34 PDT"]
[Termination "Delsoldato03 ha vinto per abbandono"]

1. e4 {[%clk 0:12:02.9]} 1... e5 {[%clk 0:12:00.9]} 2. Nf3 {[%clk 0:12:02.9]}
2... Nc6 {[%clk 0:12:02.1]} 3. Bc4 {[%clk 0:12:01.7]} 3... Bc5 {[%clk
0:11:59.3]} 4. d3 {[%clk 0:12:03.1]} 4... Nf6 {[%clk 0:11:58.9]} 5. Nc3 {[%clk
0:11:56.6]} 5... O-O {[%clk 0:11:55]} 6. Ng5 {[%clk 0:11:51.5]} 6... h6 {[%clk
0:11:51.1]} 7. Nxf7 {[%clk 0:11:50.8]} 7... Rxf7 {[%clk 0:11:52.4]} 8. Bxf7+
{[%clk 0:11:51.4]} 8... Kxf7 {[%clk 0:11:53.7]} 9. h3 {[%clk 0:11:39.8]} 9...
Nd4 {[%clk 0:11:54.6]} 10. Be3 {[%clk 0:11:33.9]} 10... d6 {[%clk 0:11:53.2]}
11. Nd5 {[%clk 0:11:31]} 11... Nxd5 {[%clk 0:11:48]} 12. Qh5+ {[%clk 0:11:25.3]}
12... Kg8 {[%clk 0:11:36]} 13. exd5 {[%clk 0:11:15.2]} 13... Nxc2+ {[%clk
0:11:36.8]} 14. Kd2 {[%clk 0:11:14.2]} 14... Bxe3+ {[%clk 0:11:32.1]} 15. fxe3
{[%clk 0:11:13.2]} 15... Nxa1 {[%clk 0:11:32]} 16. Rxa1 {[%clk 0:11:13.2]} 16...
Qg5 {[%clk 0:11:27.9]} 17. Qe8+ {[%clk 0:11:06.6]} 17... Kh7 {[%clk 0:11:27.4]}
18. g4 {[%clk 0:10:20.9]} 18... b6 {[%clk 0:11:18.9]} 19. Qa4 {[%clk 0:10:10.7]}
19... Qf6 {[%clk 0:11:08]} 20. Qe4+ {[%clk 0:10:09.2]} 20... Kh8 {[%clk
0:11:01.7]} 21. Ke2 {[%clk 0:10:07.6]} 21... Bd7 {[%clk 0:10:57.9]} 22. Rf1
{[%clk 0:10:08.8]} 22... Qe7 {[%clk 0:10:49]} 23. Qg6 {[%clk 0:09:58.5]} 23...
Rf8 {[%clk 0:10:40.5]} 24. Rxf8+ {[%clk 0:09:52.2]} 24... Qxf8 {[%clk
0:10:41.2]} 25. Qe4 {[%clk 0:09:49.7]} 25... Qf6 {[%clk 0:10:32.1]} 26. b3
{[%clk 0:09:41.2]} 26... Qh4 {[%clk 0:10:26.1]} 27. Qg2 {[%clk 0:09:34.3]} 27...
Qg5 {[%clk 0:10:14.4]} 28. a4 {[%clk 0:09:32.2]} 28... h5 {[%clk 0:10:14.3]} 29.
Qh2 {[%clk 0:09:13.5]} 29... hxg4 {[%clk 0:09:55]} 30. hxg4+ {[%clk 0:08:55.9]}
30... Qh6 {[%clk 0:09:54.8]} 31. Qg3 {[%clk 0:08:49.1]} 31... Qg6 {[%clk
0:09:36]} 32. g5 {[%clk 0:08:46]} 32... Qh5+ {[%clk 0:09:34.4]} 33. Kd2 {[%clk
0:08:46.1]} 33... Qg4 {[%clk 0:09:30.4]} 34. Qxg4 {[%clk 0:08:31.7]} 34... Bxg4
{[%clk 0:09:31.6]} 35. e4 {[%clk 0:08:31.6]} 35... Kh7 {[%clk 0:09:32.1]} 36.
Ke3 {[%clk 0:08:33.4]} 36... Kg6 {[%clk 0:09:33.9]} 37. Kf2 {[%clk 0:08:35.1]}
37... Kxg5 {[%clk 0:09:35.9]} 38. Kg3 {[%clk 0:08:37.2]} 38... Be2 {[%clk
0:09:29.6]} 39. d4 {[%clk 0:08:33.5]} 39... exd4 {[%clk 0:09:30.4]} 40. Kf2
{[%clk 0:08:34.1]} 40... Bd1 {[%clk 0:09:30.6]} 41. Ke1 {[%clk 0:08:33.5]} 41...
Bxb3 {[%clk 0:09:31.2]} 42. Kd2 {[%clk 0:08:35.4]} 42... Kf4 {[%clk 0:09:30.4]}
43. e5 {[%clk 0:08:29.6]} 43... dxe5 {[%clk 0:09:26.5]} 0-1

[Event "Un Rapid per cominciare!"]
[Site "Chess.com"]
[Date "2020.04.10"]
[Round "5"]
[White "Ollarov"]
[Black "markk000"]
[Result "1-0"]
[WhiteElo "1954"]
[BlackElo "1566"]
[TimeControl "720+3"]
[EndTime "13:23:28 PDT"]
[Termination "Ollarov ha vinto per abbandono"]

1. e4 {[%clk 0:12:02.9]} 1... c5 {[%clk 0:12:00.9]} 2. a3 {[%clk 0:12:03.7]}
2... Nc6 {[%clk 0:11:55.4]} 3. b4 {[%clk 0:12:04.9]} 3... b6 {[%clk 0:11:51.9]}
4. b5 {[%clk 0:11:42.3]} 4... Ne5 {[%clk 0:11:41]} 5. f4 {[%clk 0:11:12.3]} 5...
Ng6 {[%clk 0:11:39.8]} 6. g3 {[%clk 0:11:11.7]} 6... Bb7 {[%clk 0:11:40.9]} 7.
Bg2 {[%clk 0:11:09.4]} 7... e6 {[%clk 0:11:43]} 8. Bb2 {[%clk 0:10:49.5]} 8...
Nf6 {[%clk 0:11:41.5]} 9. d3 {[%clk 0:10:50.5]} 9... d5 {[%clk 0:11:30.2]} 10.
e5 {[%clk 0:10:49.1]} 10... Nd7 {[%clk 0:11:30.7]} 11. Nf3 {[%clk 0:10:50.5]}
11... Be7 {[%clk 0:11:30]} 12. O-O {[%clk 0:10:51.9]} 12... O-O {[%clk
0:11:31.4]} 13. Nbd2 {[%clk 0:10:52.4]} 13... h5 {[%clk 0:11:28]} 14. h4 {[%clk
0:09:08.5]} 14... Rc8 {[%clk 0:09:02.8]} 15. c4 {[%clk 0:08:52.2]} 15... d4
{[%clk 0:08:55.6]} 16. Ng5 {[%clk 0:08:22]} 16... Bxg2 {[%clk 0:08:49.7]} 17.
Kxg2 {[%clk 0:08:18.7]} 17... Bxg5 {[%clk 0:07:43.1]} 18. hxg5 {[%clk
0:08:13.5]} 18... Ne7 {[%clk 0:07:37.2]} 19. Qxh5 {[%clk 0:08:07.2]} 19... Nf5
{[%clk 0:07:37.3]} 20. Rh1 {[%clk 0:07:53]} 20... Ne3+ {[%clk 0:07:23.8]} 21.
Kg1 {[%clk 0:07:47.9]} 21... f6 {[%clk 0:07:11.8]} 22. g6 {[%clk 0:07:42.3]} 1-0